fUST/lending_fUST_20240323
["ID","MTS","AMOUNT","RATE_DAILY","PERIOD"]
[320073090,1711135842641,-1450.6,0.00026251,2]
[320073092,1711135842651,-25804.52,0.00026251,2]
[320073093,1711135842660,-930.89,0.00026251,2]
[320073095,1711135842670,-500.0,0.00026251,2]
[320073097,1711135842680,-161.02109969,0.00026252,2]
[320073098,1711135842689,-500.0,0.00026252,2]
[320073099,1711135842699,-1369.55,0.00026252,2]
[320073100,1711135842709,-500.0,0.00026252,2]
[320073101,1711135842718,-500.0,0.00026252,2]
[320073102,1711135842729,-500.0,0.00026252,2]
[320073103,1711135842738,-500.0,0.00026252,2]
[320073105,1711135842748,-500.0,0.00026252,2]
[320073107,1711135842758,-500.0,0.00026252,2]
[320073109,1711135842767,-500.0,0.00026252,2]
[320073111,1711135842776,-500.0,0.00026252,2]
[320073113,1711135842786,-500.0,0.00026252,2]
[320073115,1711135842796,-500.0,0.00026252,2]
[320073116,1711135842806,-500.0,0.00026252,2]
[320073117,1711135842815,-657.12,0.00026252,2]
[320073119,1711135842825,-500.0,0.00026252,2]
[320073120,1711135842836,-744.47,0.00026252,2]
[320073121,1711135842846,-1639.22,0.00026252,2]
[320073122,1711135842855,-500.0,0.00026252,2]
[320073123,1711135842865,-763.05,0.00026252,2]
[320073124,1711135842875,-500.0,0.00026252,2]
[320073125,1711135842885,-1133.1,0.00026252,2]
[320073126,1711135842895,-1119.21,0.00026252,2]
[320073127,1711135842910,-500.0,0.00026252,2]
[320073128,1711135842921,-500.0,0.00026252,2]
[320073129,1711135842931,-500.0,0.00026252,2]
[320073130,1711135842940,-500.0,0.00026252,2]
[320073131,1711135842951,-500.0,0.00026252,2]
[320073132,1711135842960,-500.9308153,0.00026252,2]
[320073133,1711135842969,-503.18262879,0.00026252,2]
[320073134,1711135842978,-500.0,0.00026252,2]
[320073135,1711135842989,-500.0,0.00026252,2]
[320073136,1711135842998,-500.0,0.00026252,2]
[320073137,1711135843008,-500.0,0.00026252,2]
[320073138,1711135843017,-500.0,0.00026252,2]
[320073139,1711135843026,-500.0,0.00026253,2]
[320073140,1711135843036,-3065.85666397,0.00026496,2]
[320073141,1711135843046,-1088.28,0.00026643,2]
[320073142,1711135843108,-1000.0,0.000267,2]
[320073143,1711135843123,-157.50519909,0.00026798,2]
[320073144,1711135843147,-2572.67,0.00026798,2]
[320073145,1711135843171,-1111.37,0.00026798,2]
[320073146,1711135843192,-3157.18,0.00026798,2]
[320073147,1711135843213,-1724.34,0.00026798,2]
[320073148,1711135843235,-656.94,0.00026798,2]
[320073149,1711135843259,-16859.26,0.00026798,2]
[320073150,1711135843281,-2025.09,0.00026798,2]
[320073151,1711135843304,-500.0,0.00026798,2]
[320073152,1711135843320,-1203.08,0.00026798,2]
[320073153,1711135843330,-500.0,0.00026798,2]
[320073154,1711135843339,-526.83,0.00026798,2]
[320073155,1711135843349,-913.98,0.00026798,2]
[320073156,1711135843357,-500.0,0.00026798,2]
[320073157,1711135843367,-2848.11,0.00026798,2]
[320073158,1711135843376,-17608.91,0.00026798,2]
[320073159,1711135843385,-21979.68,0.00026798,2]
[320073160,1711135843394,-7558.34,0.00026798,2]
[320073161,1711135843404,-500.0,0.00026798,2]
[320073162,1711135843414,-500.0,0.00026798,2]
[320073163,1711135843423,-1106.95,0.00026798,2]
[320073164,1711135843433,-527.35,0.00026799,2]
[320073165,1711135843442,-500.0,0.00026799,2]
[320073166,1711135843451,-500.0,0.00026799,2]
[320073167,1711135843461,-500.0,0.00026799,2]
[320073168,1711135843471,-1543.36,0.00026799,2]
[320073169,1711135843480,-500.0,0.00026799,2]
[320073170,1711135843490,-500.0,0.00026799,2]
[320073171,1711135843499,-609.08,0.00026799,2]
[320073172,1711135843509,-765.15,0.00026799,2]
[320073173,1711135843518,-624.989434,0.00026799,2]
[320073174,1711135843527,-507.9,0.00026799,2]
[320073175,1711135843536,-500.0,0.00026799,2]
[320073176,1711135843547,-500.0,0.00026799,2]
[320073177,1711135843556,-500.0,0.00026799,2]
[320073178,1711135843566,-581.0,0.00026799,2]
[320073179,1711135843574,-500.0,0.00026799,2]
[320073180,1711135843588,-500.0,0.00026799,2]
[320073181,1711135843598,-500.0,0.00026799,2]
[320073182,1711135843607,-500.0,0.00026799,2]
[320073183,1711135843616,-2553.7,0.00026799,2]
[320073184,1711135843626,-500.0,0.00026799,2]
[320073185,1711135843635,-500.0,0.00026799,2]
[320073186,1711135843645,-500.0,0.00026799,2]
[320073187,1711135843653,-451.72585333,0.00026799,2]
[320073188,1711135843662,-500.0,0.00026799,2]
[320073189,1711135843671,-500.0,0.00026799,2]
[320073190,1711135843682,-500.0,0.00026799,2]
[320073191,1711135843691,-297.11841611,0.00026799,2]
[320073192,1711135843700,-538.46,0.00026799,2]
[320073193,1711135843709,-500.0,0.00026799,2]
[320073194,1711135843718,-111.40060842,0.00026799,2]
[320073195,1711135843739,-388.59939158,0.00026799,2]
[320073196,1711135843749,-392.58757459,0.00026799,2]
[320073197,1711135843758,-1753.17,0.00026799,2]
[320073198,1711135843768,-500.0,0.00026799,2]
[320073199,1711135843777,-1424.75,0.00026799,2]
[320073200,1711135843786,-1628.25,0.00026799,2]
[320073201,1711135843795,-1211.71,0.00026799,2]
[320073202,1711135843806,-500.0,0.00026799,2]
[320073203,1711135843816,-151.0,0.00026799,2]
[320073204,1711135843826,-500.0,0.00026799,2]
[320073205,1711135843839,-500.0,0.00026799,2]
[320073206,1711135843850,-500.0,0.00026799,2]
[320073207,1711135843861,-500.0,0.00026799,2]
[320073208,1711135843871,-10349.70248477,0.00026799,2]
[320073209,1711135843902,-2487.35830798,0.00026799,2]
[320073210,1711135843970,-3640.10973909,0.00026799,2]
[320073211,1711135844054,-500.0,0.00024657,2]
[320073212,1711135844064,-594.2940873,0.00025703,2]
[320073213,1711135844075,-500.0,0.00025703,2]
[320073214,1711135844093,-500.0,0.00026251,2]
[320073215,1711135844102,-900.97946816,0.00026799,2]
[320073216,1711135844111,-500.0,0.00026799,2]
[320073217,1711135844121,-1805.75,0.00026799,2]
[320073218,1711135844131,-4030.89,0.00026799,2]
[320073219,1711135844140,-500.0,0.00026799,2]
[320073220,1711135844149,-500.0,0.00026799,2]
[320073221,1711135844158,-751.28,0.00026799,2]
[320073222,1711135844168,-151.0,0.00026799,2]
[320073223,1711135844177,-500.0,0.00026799,2]
[320073224,1711135844186,-151.0,0.00026799,2]
[320073225,1711135844195,-626.58727336,0.00026799,2]
[320073226,1711135844204,-3674.06,0.00026799,2]
[320073227,1711135844214,-500.0,0.00026799,2]
[320073228,1711135844223,-500.0,0.00026799,2]
[320073229,1711135844232,-500.0,0.00026799,2]
[320073230,1711135844241,-500.0,0.00026799,2]
[320073231,1711135844251,-1450.6,0.00026799,2]
[320073232,1711135844261,-25804.52,0.00026799,2]
[320073233,1711135844271,-930.89,0.00026799,2]
[320073234,1711135844281,-500.0,0.00026799,2]
[320073235,1711135844290,-500.0,0.00026799,2]
[320073236,1711135844299,-500.0,0.000268,2]
[320073237,1711135844308,-1369.55,0.000268,2]
[320073238,1711135844318,-500.0,0.000268,2]
[320073239,1711135844327,-500.0,0.000268,2]
[320073240,1711135844340,-500.0,0.000268,2]
[320073241,1711135844350,-500.0,0.000268,2]
[320073242,1711135844359,-500.0,0.000268,2]
[320073243,1711135844369,-500.0,0.000268,2]
[320073244,1711135844379,-500.0,0.000268,2]
[320073245,1711135844388,-657.12,0.000268,2]
[320073246,1711135844397,-500.0,0.000268,2]
[320073247,1711135844407,-744.47,0.000268,2]
[320073248,1711135844418,-1639.22,0.000268,2]
[320073249,1711135844427,-500.0,0.000268,2]
[320073250,1711135844437,-763.05,0.000268,2]
[320073251,1711135844446,-500.0,0.000268,2]
[320073252,1711135844456,-1133.1,0.000268,2]
[320073253,1711135844465,-1119.21,0.000268,2]
[320073254,1711135844475,-500.0,0.000268,2]
[320073255,1711135844484,-500.0,0.000268,2]
[320073256,1711135844494,-500.0,0.000268,2]
[320073257,1711135844504,-500.0,0.000268,2]
[320073258,1711135844514,-500.0,0.000268,2]
[320073259,1711135844524,-500.0,0.000268,2]
[320073260,1711135844534,-302.34184997,0.00026801,2]
[320073261,1711135844543,-153.0,0.00026822,2]
[320073262,1711135844553,-7752.82337168,0.00027,2]
[320073263,1711135844564,-310.88816105,0.00027054,2]
[320073264,1711135844574,-1088.28,0.00027191,2]
[320073265,1711135844586,-2572.67,0.00027346,2]
[320073266,1711135844596,-1111.37,0.00027346,2]
[320073267,1711135844606,-3157.18,0.00027346,2]
[320073268,1711135844615,-1724.34,0.00027346,2]
[320073269,1711135844625,-656.94,0.00027346,2]
[320073270,1711135844636,-16859.26,0.00027346,2]
[320073271,1711135844647,-2025.09,0.00027346,2]
[320073272,1711135844657,-500.0,0.00027346,2]
[320073273,1711135844667,-1203.08,0.00027346,2]
[320073274,1711135844679,-500.0,0.00027346,2]
[320073275,1711135844689,-526.83,0.00027346,2]
[320073276,1711135844700,-913.98,0.00027346,2]
[320073277,1711135844710,-2848.11,0.00027346,2]
[320073278,1711135844719,-17608.91,0.00027346,2]
[320073279,1711135844729,-14318.81923497,0.00027346,2]
[320073280,1711135844742,-7660.86076503,0.00027346,2]
[320073281,1711135844751,-4392.09133862,0.00027346,2]
[320073321,1711135957119,-11489.5658408,0.00021405,2]
[320073322,1711135957139,-54.4341592,0.00021712,2]
[320073323,1711136029137,-191.94768734,0.0002071,2]
[320073324,1711136029159,-364.4999781,0.00020711,2]
[320073325,1711136029179,-8075.4479,0.00021494,2]
[320073326,1711136029199,-210.16491797,0.00021494,2]
[320073327,1711136029220,-5169.56205362,0.00021495,2]
[320073328,1711136029240,-300.0,0.00021709,2]
[320073329,1711136029268,-263.30030311,0.00021709,7]
[320073330,1711136029289,-1477.41463995,0.00021709,2]
[320073331,1711136029310,-302.36214051,0.00021709,2]
[320073332,1711136029331,-3441.48938515,0.0002171,2]
[320073333,1711136029351,-154.98450155,0.00021712,2]
[320073334,1711136029373,-11429.8264927,0.00021712,2]
[320073337,1711136094849,-239.29822108,0.00021494,2]
[320073338,1711136094871,-979.94736664,0.00021495,2]
[320073339,1711136094891,-191.94768734,0.0002171,2]
[320073340,1711136094911,-154.98450155,0.00021711,2]
[320073341,1711136094932,-4548.53057575,0.00021712,2]
[320073342,1711136094953,-4211.0,0.00021712,2]
[320073343,1711136094975,-3103.29164764,0.00021712,2]
[320073368,1711136288271,-302.36214051,0.00020563,2]
[320073369,1711136288291,-154.98450155,0.00020564,2]
[320073370,1711136288312,-187.0715152,0.00020565,2]
[320073371,1711136288331,-3441.48938515,0.00020838,2]
[320073372,1711136288351,-274.09245759,0.00020839,2]
[320073373,1711136361939,-239.29822108,0.0002056,2]
[320073374,1711136361965,-8075.4479,0.00020561,2]
[320073375,1711136361990,-210.16491797,0.00020562,2]
[320073376,1711136362016,-1477.41463995,0.00020562,2]
[320073377,1711136362043,-414.14678841,0.00020839,2]
[320073378,1711136362068,-608.52753259,0.00020839,2]
[320073379,1711136435747,-239.29822108,0.00020529,2]
[320073380,1711136435767,-210.16491797,0.0002053,2]
[320073381,1711136435788,-154.98450155,0.0002053,2]
[320073382,1711136435808,-1477.41463995,0.0002053,2]
[320073383,1711136435829,-156.30521551,0.00020531,2]
[320073384,1711136435849,-3506.11948002,0.00020531,2]
[320073385,1711136435871,-1572.41746779,0.00020532,2]
[320073386,1711136435891,-180.09437435,0.00020532,2]
[320073387,1711136435912,-250.0,0.00020533,2]
[320073388,1711136435932,-151.79793318,0.00020797,2]
[320073389,1711136435952,-37.4032486,0.00020839,2]
[320073390,1711136509361,-302.36214051,0.00020526,2]
[320073391,1711136509383,-191.94768734,0.00020527,2]
[320073392,1711136509403,-160.75398886,0.00020528,2]
[320073393,1711136509424,-3441.48938515,0.0002053,2]
[320073394,1711136509444,-8075.4479,0.0002053,2]
[320073395,1711136509464,-3565.59098061,0.00020531,2]
[320073396,1711136509484,-1116.40791753,0.00020686,2]
[320073397,1711136578459,-154.98450155,0.00020683,2]
[320073398,1711136578483,-239.29822108,0.00020683,2]
[320073399,1711136578506,-263.30030311,0.00020684,7]
[320073400,1711136578526,-15801.41697426,0.00020686,2]
[320073401,1711136648564,-784.17862143,0.00020681,2]
[320073402,1711136648585,-8075.4479,0.00020681,2]
[320073403,1711136648605,-1300.61505009,0.00020682,2]
[320073404,1711136648626,-685.47138469,0.00020683,2]
[320073405,1711136648646,-534.88542469,0.00020683,2]
[320073406,1711136648666,-15409.4016191,0.00020684,2]
[320073409,1711136715706,-208.0,0.00020625,2]
[320073410,1711136738449,2055.9665251,0.0002,2]
[320073411,1711136738487,31626.06820453,0.0002,2]
[320073412,1711136783262,-155.0,0.00020584,2]
[320073413,1711136805615,1060.58413278,0.00019612,2]
[320073414,1711136810832,-1474.55,0.00035,120]
[320073415,1711136810855,-1000.0,0.00035,120]
[320073419,1711136850017,-205.13492374,0.00020035,2]
[320073420,1711136850039,-344.119623,0.00020036,2]
[320073421,1711136850062,-29.43799868,0.00020584,2]
[320073422,1711136850093,-1.30745458,0.00020625,2]
[320073512,1711137032379,-275.50508966,0.00020105,2]
[320073514,1711137032389,-214.49490984,0.00020106,2]
[320073548,1711137038063,-26575.50509016,0.00020106,2]
[320073549,1711137038072,-27.72853102,0.00020625,2]
[320073550,1711137038080,-530.19132239,0.00020683,2]
[320073551,1711137038090,-685.3267314,0.00020683,2]
[320073552,1711137038099,-2019.29594971,0.00020683,2]
[320073553,1711137038108,-338.48449801,0.00020683,2]
[320073554,1711137038117,-20894.02563418,0.00020684,2]
[320073555,1711137038129,-601.9068527,0.00020684,2]
[320073556,1711137038138,-42.12373774,0.00020839,2]
[320073557,1711137038147,-154.98450155,0.0002171,2]
[320073558,1711137038158,-154.98450155,0.0002171,2]
[320073559,1711137038169,-322.61827325,0.0002171,2]
[320073560,1711137038179,-154.98450155,0.0002171,2]
[320073561,1711137038188,-779.72077743,0.0002171,2]
[320073562,1711137038196,-1621.82996488,0.0002171,2]
[320073563,1711137038206,-234.80404888,0.0002171,2]
[320073564,1711137038215,-255.75294514,0.0002171,2]
[320073565,1711137038224,-180.24387413,0.0002171,2]
[320073566,1711137038234,-156.00342671,0.0002171,2]
[320073567,1711137038246,-2603.55769932,0.0002171,2]
[320073568,1711137038255,-210.60253216,0.0002171,2]
[320073569,1711137038264,-487.92325292,0.0002171,2]
[320073570,1711137038272,-270.37786055,0.0002171,2]
[320073571,1711137038283,-176.14040003,0.0002171,2]
[320073572,1711137038293,-243.88339783,0.0002171,2]
[320073573,1711137038302,-3227.16699608,0.0002171,2]
[320073574,1711137038312,-184.02969221,0.0002171,2]
[320073575,1711137038323,-187.16195734,0.0002171,2]
[320073576,1711137038333,-309.87609912,0.0002171,2]
[320073577,1711137038343,-195.40953696,0.0002171,7]
[320073578,1711137038352,-251.87051363,0.0002171,2]
[320073579,1711137038361,-302.37627961,0.0002171,2]
[320073580,1711137038370,-603.12853459,0.0002171,2]
[320073581,1711137038381,-359.16219172,0.0002171,2]
[320073582,1711137038390,-155.0,0.0002171,2]
[320073583,1711137038399,-1537.7459813,0.0002171,2]
[320073584,1711137038409,-159.84906088,0.0002171,2]
[320073585,1711137038418,-368.26420151,0.0002171,2]
[320073586,1711137038427,-621.55352171,0.0002171,2]
[320073587,1711137038436,-1382.5455468,0.00021711,2]
[320073588,1711137038446,-13435.2621506,0.00021712,2]
[320073589,1711137038455,-171.0109969,0.00021712,2]
[320073590,1711137038463,-14842.88414814,0.00021712,2]
[320073591,1711137038473,-161.02109969,0.00021712,2]
[320073592,1711137038482,-154.98450155,0.00021712,2]
[320073593,1711137038491,-291.12745781,0.00021715,2]
[320073594,1711137038501,-164.349322,0.00021918,2]
[320073595,1711137038510,-683.26554428,0.00022986,2]
[320073596,1711137038522,-15664.20938236,0.00023085,2]
[320073597,1711137038531,-157.50519909,0.00023086,2]
[320073598,1711137038541,-470.70840451,0.00023087,2]
[320073599,1711137038550,-164.349322,0.00023452,2]
[320073600,1711137038559,-683.26554427,0.00023516,2]
[320073601,1711137038568,-683.26554427,0.00024046,2]
[320073602,1711137038578,-683.26554427,0.00024575,2]
[320073603,1711137038587,-1060.58413278,0.00024612,2]
[320073604,1711137038596,-534.71774984,0.00024655,2]
[320073605,1711137038604,-222.69768656,0.00024655,2]
[320073606,1711137038614,-309.79863785,0.00024655,2]
[320073607,1711137038623,-304.78785734,0.00024655,2]
[320073608,1711137038634,-205.13492374,0.00024655,2]
[320073609,1711137038643,-240.35470573,0.00024656,2]
[320073610,1711137038653,-500.0,0.00024657,2]
[320073611,1711137038662,-500.0,0.00024657,2]
[320073612,1711137038671,-500.0,0.00024657,2]
[320073613,1711137038680,-500.0,0.00024657,2]
[320073614,1711137038689,-500.0,0.00024657,2]
[320073615,1711137038698,-500.0,0.00024657,2]
[320073616,1711137038707,-500.0,0.00024657,2]
[320073617,1711137038716,-500.0,0.00024657,2]
[320073618,1711137038725,-500.0,0.00024657,2]
[320073619,1711137038735,-500.0,0.00024657,2]
[320073620,1711137038744,-500.0,0.00024657,2]
[320073621,1711137038754,-500.0,0.00024657,2]
[320073622,1711137038763,-584.34,0.00024657,2]
[320073623,1711137038773,-500.0,0.00024657,2]
[320073624,1711137038782,-500.0,0.00024657,2]
[320073625,1711137038791,-500.0,0.00024657,2]
[320073626,1711137038800,-500.0,0.00024657,2]
[320073627,1711137038809,-500.0,0.00024657,2]
[320073628,1711137038819,-151.0,0.00024657,2]
[320073629,1711137038829,-154.82968734,0.00024657,2]
[320073630,1711137038838,-500.0,0.00024657,2]
[320073631,1711137038849,-892.1,0.00024657,2]
[320073632,1711137038858,-500.0,0.00024657,2]
[320073633,1711137038868,-500.0,0.00024657,2]
[320073634,1711137038882,-500.0,0.00024657,2]
[320073635,1711137038896,-500.0,0.00024657,2]
[320073636,1711137038905,-500.0,0.00024657,2]
[320073637,1711137038914,-294.47,0.00024657,2]
[320073638,1711137038924,-500.0,0.00024657,2]
[320073639,1711137038934,-500.0,0.00024657,2]
[320073640,1711137038944,-500.0,0.00024657,2]
[320073641,1711137038954,-500.0,0.00024657,2]
[320073642,1711137038963,-500.0,0.00024657,2]
[320073643,1711137038973,-583.7,0.00024657,2]
[320073644,1711137038981,-309.85910611,0.00024657,2]
[320073645,1711137038990,-500.0,0.00024657,2]
[320073646,1711137039000,-500.0,0.00024657,2]
[320073647,1711137039008,-733.27,0.00024657,2]
[320073648,1711137039018,-500.0,0.00024657,2]
[320073649,1711137039028,-500.0,0.00024657,2]
[320073650,1711137039039,-500.0,0.00024657,2]
[320073651,1711137039048,-500.0,0.00024657,2]
[320073652,1711137039057,-500.0,0.00024657,2]
[320073653,1711137039066,-500.0,0.00024657,2]
[320073654,1711137039076,-500.0,0.00024657,2]
[320073655,1711137039085,-500.0,0.00024657,2]
[320073656,1711137039095,-500.0,0.00024657,2]
[320073657,1711137039104,-500.0,0.00024657,2]
[320073658,1711137039114,-500.0,0.00024657,2]
[320073659,1711137039123,-500.0,0.00024657,2]
[320073660,1711137039140,-500.0,0.00024657,2]
[320073661,1711137039149,-570.85928019,0.00024657,2]
[320073662,1711137039158,-2553.7,0.00024657,2]
[320073663,1711137039167,-500.0,0.00024657,2]
[320073664,1711137039177,-500.0,0.00024657,2]
[320073665,1711137039186,-500.0,0.00024657,2]
[320073666,1711137039196,-500.0,0.00024657,2]
[320073667,1711137039205,-500.0,0.00024657,2]
[320073668,1711137039214,-500.0,0.00024657,2]
[320073669,1711137039224,-500.0,0.00024657,2]
[320073670,1711137039233,-719.98,0.00024657,2]
[320073671,1711137039245,-500.0,0.00024657,2]
[320073672,1711137039256,-500.0,0.00024657,2]
[320073673,1711137039266,-500.0,0.00024657,2]
[320073674,1711137039276,-501.85256439,0.00024657,2]
[320073675,1711137039286,-500.0,0.00024657,2]
[320073676,1711137039295,-500.0,0.00024657,2]
[320073677,1711137039304,-500.0,0.00024657,2]
[320073678,1711137039313,-500.0,0.00024657,2]
[320073679,1711137039324,-500.0,0.00024657,2]
[320073680,1711137039333,-500.0,0.00024657,2]
[320073681,1711137039342,-500.0,0.00024657,2]
[320073682,1711137039351,-500.0,0.00024657,2]
[320073683,1711137039361,-500.0,0.00024657,2]
[320073684,1711137039370,-1412.48,0.00024657,2]
[320073685,1711137039381,-500.0,0.00024657,2]
[320073686,1711137039391,-500.0,0.00024657,2]
[320073687,1711137039400,-500.0,0.00024657,2]
[320073688,1711137039410,-359.91240088,0.00024657,2]
[320073689,1711137039419,-500.0,0.00024657,2]
[320073690,1711137039428,-500.0,0.00024657,2]
[320073691,1711137039438,-500.0,0.00024657,2]
[320073692,1711137039448,-500.0,0.00024657,2]
[320073693,1711137039457,-500.0,0.00024657,2]
[320073694,1711137039467,-500.0,0.00024657,2]
[320073695,1711137039477,-500.0,0.00024657,2]
[320073697,1711137039486,-500.0,0.00024657,2]
[320073699,1711137039495,-500.0,0.00024657,2]
[320073701,1711137039504,-503.01453332,0.00024657,2]
[320073703,1711137039513,-500.0,0.00024657,2]
[320073704,1711137039522,-500.0,0.00024657,2]
[320073706,1711137039531,-500.0,0.00024657,2]
[320073707,1711137039540,-500.0,0.00024657,2]
[320073708,1711137039550,-500.0,0.00024657,2]
[320073709,1711137039560,-500.0,0.00024657,2]
[320073710,1711137039569,-500.0,0.00024657,2]
[320073711,1711137039578,-500.0,0.00024657,2]
[320073712,1711137039587,-626.97051343,0.00024657,2]
[320073713,1711137039596,-298.13990406,0.00024657,2]
[320073714,1711137039605,-500.0,0.00024657,2]
[320073715,1711137039614,-500.0,0.00024657,2]
[320073716,1711137039624,-500.0,0.00024657,2]
[320073717,1711137039636,-500.0,0.00024657,2]
[320073718,1711137039646,-538.46,0.00024657,2]
[320073719,1711137039655,-500.0,0.00024657,2]
[320073720,1711137039666,-500.0,0.00024657,2]
[320073721,1711137039675,-500.0,0.00024657,2]
[320073722,1711137039685,-500.0,0.00024657,2]
[320073723,1711137039694,-1680.12,0.00024657,2]
[320073724,1711137039704,-1444.35,0.00024657,2]
[320073725,1711137039713,-2465.47,0.00024657,2]
[320073726,1711137039722,-500.0,0.00024657,2]
[320073727,1711137039731,-504.7,0.00024657,2]
[320073728,1711137039740,-500.0,0.00024657,2]
[320073729,1711137039750,-1560.4,0.00024657,2]
[320073730,1711137039760,-232.51884084,0.00024657,2]
[320073731,1711137039769,-629.56,0.00024657,2]
[320073732,1711137039778,-1065.06,0.00024657,2]
[320073733,1711137039787,-503.0735052,0.00024657,2]
[320073734,1711137039796,-500.0,0.00024657,2]
[320073737,1711137039924,-500.0,0.00024657,2]
[320073739,1711137039934,-16156.79,0.00024657,2]
[320073740,1711137039944,-3025.63,0.00024657,2]
[320073741,1711137039953,-500.0,0.00024657,2]
[320073742,1711137039963,-500.0,0.00024657,2]
[320073743,1711137039973,-1232.98,0.00024657,2]
[320073744,1711137039982,-1652.49,0.00024657,2]
[320073745,1711137039991,-626.60944168,0.00024657,2]
[320073746,1711137039999,-500.0,0.00024657,2]
[320073748,1711137040009,-500.0,0.00024657,2]
[320073749,1711137040018,-1730.51,0.00024657,2]
[320073750,1711137040027,-2039.28,0.00024657,2]
[320073751,1711137040036,-500.0,0.00024657,2]
[320073752,1711137040045,-500.0,0.00024657,2]
[320073753,1711137040054,-500.0,0.00024657,2]
[320073754,1711137040066,-500.0,0.00024657,2]
[320073756,1711137040075,-500.0,0.00024657,2]
[320073757,1711137040084,-500.0,0.00024657,2]
[320073759,1711137040093,-368.83574321,0.00024657,2]
[320073760,1711137040101,-500.0,0.00024657,2]
[320073762,1711137040111,-500.0,0.00024657,2]
[320073764,1711137040120,-500.0,0.00024657,2]
[320073765,1711137040130,-16654.06,0.00024657,2]
[320073766,1711137040138,-582.75,0.00024657,2]
[320073767,1711137040148,-1152.96,0.00024657,2]
[320073768,1711137040157,-504.88,0.00024657,2]
[320073770,1711137040167,-500.0,0.00024657,2]
[320073771,1711137040175,-500.0,0.00024657,2]
[320073772,1711137040184,-500.0,0.00024657,2]
[320073773,1711137040193,-500.0,0.00024657,2]
[320073774,1711137040202,-500.0,0.00024657,2]
[320073775,1711137040211,-500.0,0.00024657,2]
[320073776,1711137040221,-500.0,0.00024657,2]
[320073777,1711137040233,-500.0,0.00024657,2]
[320073778,1711137040242,-3862.94,0.00024657,2]
[320073779,1711137040251,-500.0,0.00024657,2]
[320073780,1711137040261,-500.0,0.00024657,2]
[320073781,1711137040270,-500.0,0.00024657,2]
[320073782,1711137040279,-500.0,0.00024657,2]
[320073783,1711137040288,-500.0,0.00024657,2]
[320073784,1711137040297,-500.0,0.00024657,2]
[320073785,1711137040307,-875.9,0.00024657,2]
[320073786,1711137040317,-500.0,0.00024657,2]
[320073787,1711137040327,-1390.16,0.00024657,2]
[320073788,1711137040336,-500.0,0.00024657,2]
[320073789,1711137040345,-500.0,0.00024657,2]
[320073790,1711137040354,-500.0,0.00024657,2]
[320073791,1711137040363,-500.0,0.00024657,2]
[320073792,1711137040372,-500.0,0.00024657,2]
[320073793,1711137040383,-500.0,0.00024657,2]
[320073794,1711137040392,-17405.76,0.00024657,2]
[320073795,1711137040402,-500.0,0.00024657,2]
[320073796,1711137040411,-2729.43,0.00024657,2]
[320073797,1711137040420,-500.0,0.00024657,2]
[320073798,1711137040429,-500.0,0.00024657,2]
[320073799,1711137040438,-500.0,0.00024657,2]
[320073800,1711137040447,-500.0,0.00024657,2]
[320073801,1711137040456,-500.0,0.00024657,2]
[320073802,1711137040466,-500.0,0.00024657,2]
[320073803,1711137040475,-500.0,0.00024657,2]
[320073804,1711137040484,-500.0,0.00024657,2]
[320073805,1711137040493,-500.0,0.00024657,2]
[320073806,1711137040502,-502.34938608,0.00024657,2]